[Event "Irish Championship 2026"]
[Site "Talbot Hotel Stillorgan, Co.Dublin, IE"]
[Date "2026.08.06"]
[Round "6"]
[White "Doolin, Nemhain"]
[Black "Greenan, Darragh"]
[Result "1/2-1/2"]
[Board "86"]
[TimeControl "40/5400+30:1800+30"]
[WhiteFideId "2517230"]
[BlackFideId "2525607"]
[WhiteElo "1915"]
[BlackElo "1786"]
[WhiteClock "0:08:27"]
[BlackClock "0:24:57"]
[Variant "Standard"]
[EndDate "2026.08.06"]
[EndTime "18:29:14"]

1. e4 {[%clk 1:30:57]}  e6 {[%clk 1:30:56]} 2. d4 {[%clk 1:31:24]}  d5 {[%clk 1:31:22]} 3. e5 {[%clk 1:31:46]}  c5 {[%clk 1:31:46]}
4. c3 {[%clk 1:32:13]}  Nc6 {[%clk 1:32:12]} 5. Nf3 {[%clk 1:32:39]}  Qb6 {[%clk 1:32:27]} 6. Bd3 {[%clk 1:33:02]}  Bd7 {[%clk 1:32:10]}
7. dxc5 {[%clk 1:33:26]}  Bxc5 {[%clk 1:32:19]} 8. O-O {[%clk 1:33:52]}  a5 {[%clk 1:30:36]} 9. Qe2 {[%clk 1:34:04]}  Nge7 {[%clk 1:29:41]}
10. Nbd2 {[%clk 1:34:20]}  Qc7 {[%clk 1:22:49]} 11. Nb3 {[%clk 1:34:16]}  Ba7 {[%clk 1:21:21]} 12. Nbd4 {[%clk 1:33:38]}  Nxd4 {[%clk 1:17:48]}
13. cxd4 {[%clk 1:32:38]}  Nc6 {[%clk 1:15:39]} 14. Be3 {[%clk 1:29:56]}  O-O {[%clk 1:12:18]} 15. Ng5 {[%clk 1:08:02]}  g6 {[%clk 1:02:42]}
16. Qg4 {[%clk 1:00:14]}  h5 {[%clk 0:47:27]} 17. Qh4 {[%clk 0:56:08]}  Kg7 {[%clk 0:40:07]} 18. Nf3 {[%clk 0:51:58]}  f6 {[%clk 0:30:36]}
19. exf6+ {[%clk 0:49:56]}  Rxf6 {[%clk 0:30:45]} 20. Bh6+ {[%clk 0:45:53]}  Kf7 {[%clk 0:30:37]} 21. Bg5 {[%clk 0:43:52]}  Rxf3 {[%clk 0:30:26]}
22. gxf3 {[%clk 0:43:50]}  Nxd4 {[%clk 0:30:25]} 23. Kg2 {[%clk 0:42:06]}  e5 {[%clk 0:29:22]} 24. Be7 {[%clk 0:36:08]}  Qb6 {[%clk 0:26:12]}
25. Rac1 {[%clk 0:27:27]}  Qe6 {[%clk 0:23:34]} 26. Bc5 {[%clk 0:17:49]}  Bxc5 {[%clk 0:23:18]} 27. Rxc5 {[%clk 0:17:55]}  Kg7 {[%clk 0:22:23]}
28. Re1 {[%clk 0:08:23]}  Rf8 {[%clk 0:19:44]} 29. Re3 {[%clk 0:07:14]}  Qd6 {[%clk 0:16:49]} 30. Rxa5 {[%clk 0:05:02]}  Rf4 {[%clk 0:16:37]}
31. Qg5 {[%clk 0:03:37]}  Nxf3 {[%clk 0:16:12]} 32. Qxg6+ {[%clk 0:01:23]}  Qxg6+ {[%clk 0:16:35]} 33. Bxg6 {[%clk 0:01:51]}  Nh4+ {[%clk 0:16:49]}
34. Kf1 {[%clk 0:02:15]}  Nxg6 {[%clk 0:16:23]} 35. Rxd5 {[%clk 0:02:34]}  Bc6 {[%clk 0:16:00]} 36. Rd6 {[%clk 0:02:44]}  Kf7 {[%clk 0:14:54]}
37. a3 {[%clk 0:02:29]}  Nh4 {[%clk 0:15:00]} 38. Rxe5 {[%clk 0:01:54]}  Rc4 {[%clk 0:11:19]} 39. Ke2 {[%clk 0:01:19]}  Rc2+ {[%clk 0:07:11]}
40. Kd3 {[%clk 0:00:56]}  Rxf2 {[%clk 0:05:54]} 41. Rxh5 {[%clk 0:29:48]}  Nf5 {[%clk 0:35:28]} 42. Rd8 {[%clk 0:29:49]}  Kg6 {[%clk 0:34:47]}
43. Rhh8 {[%clk 0:29:04]}  Rxb2 {[%clk 0:33:33]} 44. Kc3 {[%clk 0:28:42]}  Ra2 {[%clk 0:30:22]} 45. Kb3 {[%clk 0:28:08]}  Rf2 {[%clk 0:30:15]}
46. h4 {[%clk 0:27:35]}  Rf3+ {[%clk 0:28:52]} 47. Kb2 {[%clk 0:24:27]}  Rh3 {[%clk 0:26:02]} 48. Rdg8+ {[%clk 0:22:14]}  Kf6 {[%clk 0:26:12]}
49. Rg4 {[%clk 0:20:05]}  Rh2+ {[%clk 0:25:06]} 50. Kc3 {[%clk 0:19:58]}  Rh3+ {[%clk 0:24:22]} 51. Kb2 {[%clk 0:14:37]}  Rh2+ {[%clk 0:24:41]}
52. Kc3 {[%clk 0:12:06]}  Rh3+ {[%clk 0:24:57]} 53. Kb2 {[%clk 0:08:27]}  Ke5 {[%clk 0:23:21]} 1/2-1/2

[Event "Irish Championship 2026"]
[Site "Talbot Hotel Stillorgan, Co.Dublin, IE"]
[Date "2026.08.07"]
[Round "7"]
[White "Tureshbayev, Anuar"]
[Black "Joe Ryan"]
[Result "1-0"]
[Board "61"]
[TimeControl "40/5400+30:1800+30"]
[WhiteFideId "651081709"]
[WhiteElo "2250"]
[BlackElo "2159"]
[WhiteTitle "FM"]
[WhiteClock "0:21:34"]
[BlackClock "0:02:05"]
[Variant "Standard"]
[EndDate "2026.08.07"]
[EndTime "17:33:24"]

1. e4 {[%clk 1:30:59]}  d6 {[%clk 1:21:38]} 2. d4 {[%clk 1:31:21]}  Nf6 {[%clk 1:22:01]} 3. Nc3 {[%clk 1:31:49]}  g6 {[%clk 1:22:08]}
4. Bg5 {[%clk 1:32:07]}  Bg7 {[%clk 1:21:41]} 5. Qd2 {[%clk 1:32:10]}  h6 {[%clk 1:19:39]} 6. Bf4 {[%clk 1:31:31]}  c6 {[%clk 1:19:19]}
7. a4 {[%clk 1:24:54]}  g5 {[%clk 1:10:13]} 8. Be3 {[%clk 1:23:15]}  Ng4 {[%clk 1:10:18]} 9. h4 {[%clk 1:15:20]}  Nxe3 {[%clk 1:09:55]}
10. Qxe3 {[%clk 1:15:40]}  Qa5 {[%clk 1:00:49]} 11. hxg5 {[%clk 1:05:55]}  hxg5 {[%clk 0:59:30]} 12. Rxh8+ {[%clk 1:06:21]}  Bxh8 {[%clk 0:59:48]}
13. e5 {[%clk 1:04:04]}  dxe5 {[%clk 0:48:49]} 14. Qxg5 {[%clk 1:04:30]}  Bf6 {[%clk 0:48:40]} 15. Qg8+ {[%clk 1:04:56]}  Kd7 {[%clk 0:49:04]}
16. d5 {[%clk 0:56:17]}  cxd5 {[%clk 0:34:52]} 17. O-O-O {[%clk 0:51:12]}  d4 {[%clk 0:37:18]} 18. Bb5+ {[%clk 0:47:14]}  Nc6 {[%clk 0:37:08]}
19. Nd5 {[%clk 0:47:23]}  Kd6 {[%clk 0:34:44]} 20. Nxf6 {[%clk 0:47:15]}  exf6 {[%clk 0:35:02]} 21. Qf8+ {[%clk 0:45:08]}  Kc7 {[%clk 0:34:12]}
22. Qxf7+ {[%clk 0:44:05]}  Bd7 {[%clk 0:34:20]} 23. Qxf6 {[%clk 0:44:18]}  a6 {[%clk 0:33:22]} 24. Bxc6 {[%clk 0:43:40]}  Bxc6 {[%clk 0:33:06]}
25. f4 {[%clk 0:28:45]}  Re8 {[%clk 0:30:58]} 26. fxe5 {[%clk 0:29:02]}  Qxe5 {[%clk 0:31:10]} 27. Qxe5+ {[%clk 0:29:14]}  Rxe5 {[%clk 0:31:29]}
28. Nf3 {[%clk 0:29:03]}  Bxf3 {[%clk 0:25:23]} 29. gxf3 {[%clk 0:29:29]}  Rf5 {[%clk 0:25:27]} 30. Rd3 {[%clk 0:29:45]}  Kc6 {[%clk 0:23:13]}
31. Kd2 {[%clk 0:29:55]}  Kc5 {[%clk 0:23:21]} 32. c3 {[%clk 0:27:09]}  dxc3+ {[%clk 0:23:45]} 33. Kxc3 {[%clk 0:27:34]}  Rf4 {[%clk 0:21:59]}
34. b3 {[%clk 0:26:56]}  b5 {[%clk 0:21:39]} 35. axb5 {[%clk 0:27:07]}  axb5 {[%clk 0:21:55]} 36. Kd2 {[%clk 0:27:24]}  Kb4 {[%clk 0:19:24]}
37. Ke3 {[%clk 0:27:47]}  Rh4 {[%clk 0:14:21]} 38. f4 {[%clk 0:27:52]}  Rh1 {[%clk 0:12:45]} 39. f5 {[%clk 0:27:46]}  Rf1 {[%clk 0:12:12]}
40. Ke4 {[%clk 0:28:08]}  Kc5 {[%clk 0:11:55]} 41. Ke5 {[%clk 0:28:27]}  Re1 {[%clk 0:10:56]} 42. Kf6 {[%clk 0:28:50]}  b4 {[%clk 0:11:21]}
43. Kg5 {[%clk 0:23:11]}  Rg1 {[%clk 0:10:27]} 44. Kf4 {[%clk 0:23:22]}  Rf1+ {[%clk 0:10:15]} 45. Rf3 {[%clk 0:20:17]}  Rc1 {[%clk 0:09:14]}
46. f6 {[%clk 0:19:03]}  Kd6 {[%clk 0:09:28]} 47. Kg5 {[%clk 0:18:35]}  Rc3 {[%clk 0:05:47]} 48. Rf4 {[%clk 0:18:55]}  Rg3+ {[%clk 0:05:52]}
49. Kh4 {[%clk 0:19:10]}  Rg8 {[%clk 0:05:54]} 50. f7 {[%clk 0:19:31]}  Rf8 {[%clk 0:06:15]} 51. Kg5 {[%clk 0:19:54]}  Ke5 {[%clk 0:03:11]}
52. Rf1 {[%clk 0:20:17]}  Kd4 {[%clk 0:01:16]} 53. Kg6 {[%clk 0:20:40]}  Kc3 {[%clk 0:01:41]} 54. Rf3+ {[%clk 0:21:07]}  Kc2 {[%clk 0:02:05]}
55. Kg7 {[%clk 0:21:34]} 1-0

[Event "Irish Championship 2026"]
[Site "Talbot Hotel Stillorgan, Co.Dublin, IE"]
[Date "2026.08.07"]
[Round "7"]
[White "Venkatesan, Kavin"]
[Black "Collins, Adam"]
[Result "0-1"]
[Board "62"]
[TimeControl "40/5400+30:1800+30"]
[WhiteFideId "2512602"]
[BlackFideId "2512300"]
[WhiteElo "2297"]
[BlackElo "2340"]
[WhiteTitle "FM"]
[BlackTitle "FM"]
[WhiteClock "0:08:59"]
[BlackClock "0:24:22"]
[Variant "Standard"]
[EndDate "2026.08.07"]
[EndTime "18:21:51"]

1. d4 {[%clk 1:30:38]}  d5 {[%clk 1:30:01]} 2. c4 {[%clk 1:30:58]}  e6 {[%clk 1:30:25]} 3. Nc3 {[%clk 1:31:20]}  Nf6 {[%clk 1:30:40]}
4. cxd5 {[%clk 1:31:42]}  exd5 {[%clk 1:31:05]} 5. Bg5 {[%clk 1:31:43]}  c6 {[%clk 1:30:52]} 6. e3 {[%clk 1:31:58]}  Be7 {[%clk 1:31:08]}
7. Bd3 {[%clk 1:31:34]}  O-O {[%clk 1:31:13]} 8. Nge2 {[%clk 1:30:13]}  Re8 {[%clk 1:31:21]} 9. O-O {[%clk 1:29:22]}  a5 {[%clk 1:31:46]}
10. Qc2 {[%clk 1:25:08]}  h6 {[%clk 1:32:07]} 11. Bh4 {[%clk 1:25:11]}  Na6 {[%clk 1:32:25]} 12. a3 {[%clk 1:25:35]}  Nc7 {[%clk 1:32:29]}
13. f3 {[%clk 1:11:13]}  c5 {[%clk 1:32:25]} 14. Bf2 {[%clk 1:04:10]}  c4 {[%clk 0:59:42]} 15. Bf5 {[%clk 1:04:30]}  b5 {[%clk 0:59:52]}
16. Ng3 {[%clk 1:00:38]}  Bf8 {[%clk 0:53:30]} 17. Rfe1 {[%clk 0:41:41]}  Bxf5 {[%clk 0:46:00]} 18. Nxf5 {[%clk 0:38:13]}  b4 {[%clk 0:45:44]}
19. Ne2 {[%clk 0:28:44]}  Qd7 {[%clk 0:42:31]} 20. Nfg3 {[%clk 0:24:44]}  Qc6 {[%clk 0:36:08]} 21. Rec1 {[%clk 0:19:40]}  Nb5 {[%clk 0:34:50]}
22. a4 {[%clk 0:16:00]}  Nd6 {[%clk 0:34:50]} 23. Nf4 {[%clk 0:08:38]}  Qd7 {[%clk 0:33:03]} 24. Re1 {[%clk 0:08:31]}  Qb7 {[%clk 0:25:53]}
25. Re2 {[%clk 0:06:10]}  Rac8 {[%clk 0:17:42]} 26. Rae1 {[%clk 0:04:43]}  Qc7 {[%clk 0:17:03]} 27. e4 {[%clk 0:03:03]}  Ndxe4 {[%clk 0:14:29]}
28. Nxd5 {[%clk 0:02:32]}  Nxd5 {[%clk 0:14:47]} 29. Nxe4 {[%clk 0:01:17]}  Qc6 {[%clk 0:14:38]} 30. Nc5 {[%clk 0:00:42]}  c3 {[%clk 0:13:34]}
31. Re4 {[%clk 0:00:34]}  cxb2 {[%clk 0:13:35]} 32. Qxb2 {[%clk 0:00:58]}  Nc3 {[%clk 0:13:26]} 33. Rxe8 {[%clk 0:00:37]}  Rxe8 {[%clk 0:13:54]}
34. Ra1 {[%clk 0:00:46]}  Bxc5 {[%clk 0:09:21]} 35. dxc5 {[%clk 0:01:14]}  Qd5 {[%clk 0:09:39]} 36. Qc2 {[%clk 0:00:39]}  Re2 {[%clk 0:09:44]}
37. Qc1 {[%clk 0:01:08]}  Rd2 {[%clk 0:09:13]} 38. Qe1 {[%clk 0:00:52]}  Re2 {[%clk 0:07:53]} 39. Qc1 {[%clk 0:00:43]}  Qc4 {[%clk 0:07:48]}
40. Rb1 {[%clk 0:00:32]}  Ra2 {[%clk 0:05:16]} 41. Qf1 {[%clk 0:28:04]}  Ne2+ {[%clk 0:32:09]} 42. Kh1 {[%clk 0:28:21]}  Rc2 {[%clk 0:30:49]}
43. Be3 {[%clk 0:15:55]}  b3 {[%clk 0:29:32]} 44. Qd1 {[%clk 0:14:44]}  Nc3 {[%clk 0:27:49]} 45. Qd8+ {[%clk 0:13:40]}  Kh7 {[%clk 0:28:16]}
46. Rg1 {[%clk 0:12:17]}  b2 {[%clk 0:27:34]} 47. Qb8 {[%clk 0:11:49]}  Ne2 {[%clk 0:26:44]} 48. Qe5 {[%clk 0:08:59]}  Qe6 {[%clk 0:24:22]} 0-1

[Event "Irish Championship 2026"]
[Site "Talbot Hotel Stillorgan, Co.Dublin, IE"]
[Date "2026.08.07"]
[Round "7"]
[White "Andrey A. Ivanov"]
[Black "Jacob Flynn"]
[Result "0-1"]
[Board "63"]
[TimeControl "40/5400+30:1800+30"]
[WhiteElo "2085"]
[BlackElo "2289"]
[WhiteClock "0:31:12"]
[BlackClock "0:23:43"]
[Variant "Standard"]
[EndDate "2026.08.07"]
[EndTime "18:06:16"]

1. Nf3 {[%clk 1:30:42]}  Nf6 {[%clk 1:26:58]} 2. c4 {[%clk 1:30:52]}  e6 {[%clk 1:26:29]} 3. Nc3 {[%clk 1:31:03]}  d5 {[%clk 1:26:42]}
4. cxd5 {[%clk 1:31:06]}  exd5 {[%clk 1:27:06]} 5. d4 {[%clk 1:31:33]}  c6 {[%clk 1:23:06]} 6. Qc2 {[%clk 1:31:24]}  g6 {[%clk 1:18:35]}
7. Bg5 {[%clk 1:28:38]}  Be7 {[%clk 1:15:25]} 8. e3 {[%clk 1:22:59]}  Bf5 {[%clk 1:15:49]} 9. Qb3 {[%clk 1:23:21]}  Qb6 {[%clk 1:15:16]}
10. Be2 {[%clk 1:21:59]}  Nbd7 {[%clk 1:14:05]} 11. O-O {[%clk 1:20:57]}  O-O {[%clk 1:10:42]} 12. Ne5 {[%clk 1:12:18]}  Rfe8 {[%clk 1:07:12]}
13. Bxf6 {[%clk 0:39:45]}  Nxf6 {[%clk 1:02:30]} 14. Qxb6 {[%clk 0:39:33]}  axb6 {[%clk 1:02:47]} 15. g4 {[%clk 0:39:43]}  Bc8 {[%clk 1:00:42]}
16. h3 {[%clk 0:31:03]}  b5 {[%clk 0:52:25]} 17. a3 {[%clk 0:28:07]}  Ne4 {[%clk 0:43:08]} 18. Rac1 {[%clk 0:19:47]}  f6 {[%clk 0:37:27]}
19. Nd3 {[%clk 0:17:42]}  Nxc3 {[%clk 0:36:56]} 20. Rxc3 {[%clk 0:17:50]}  Bd6 {[%clk 0:36:02]} 21. Kg2 {[%clk 0:14:14]}  Re7 {[%clk 0:32:16]}
22. Bf3 {[%clk 0:10:37]}  Kg7 {[%clk 0:25:38]} 23. Rcc1 {[%clk 0:08:00]}  Be6 {[%clk 0:25:07]} 24. Rh1 {[%clk 0:05:31]}  Bf7 {[%clk 0:23:28]}
25. Rc3 {[%clk 0:01:43]}  Rh8 {[%clk 0:17:34]} 26. Rcc1 {[%clk 0:01:30]}  Rf8 {[%clk 0:09:53]} 27. Rcd1 {[%clk 0:00:48]}  Be6 {[%clk 0:09:41]}
28. Be2 {[%clk 0:01:02]}  Bc8 {[%clk 0:07:51]} 29. Rc1 {[%clk 0:01:23]}  f5 {[%clk 0:07:48]} 30. Rce1 {[%clk 0:00:44]}  f4 {[%clk 0:06:09]}
31. Bf3 {[%clk 0:00:36]}  fxe3 {[%clk 0:06:24]} 32. Rxe3 {[%clk 0:00:52]}  Ref7 {[%clk 0:04:56]} 33. Rhe1 {[%clk 0:00:46]}  Kh6 {[%clk 0:02:10]}
34. b4 {[%clk 0:00:34]}  Kg5 {[%clk 0:01:59]} 35. Bd1 {[%clk 0:00:34]}  h5 {[%clk 0:02:03]} 36. Ne5 {[%clk 0:00:50]}  Rxf2+ {[%clk 0:02:17]}
37. Kg1 {[%clk 0:01:19]}  R2f4 {[%clk 0:00:56]} 38. Rg3 {[%clk 0:00:34]}  hxg4 {[%clk 0:00:56]} 39. Bxg4 {[%clk 0:00:35]}  Bxg4 {[%clk 0:01:09]}
40. hxg4 {[%clk 0:00:36]}  Re4 {[%clk 0:00:40]} 41. Rge3 {[%clk 0:26:22]}  Rxe3 {[%clk 0:27:27]} 42. Rxe3 {[%clk 0:26:41]}  Bxe5 {[%clk 0:26:28]}
43. Rxe5+ {[%clk 0:26:29]}  Kxg4 {[%clk 0:26:51]} 44. Re7 {[%clk 0:26:56]}  Rf4 {[%clk 0:24:59]} 45. Rxb7 {[%clk 0:27:21]}  Rxd4 {[%clk 0:25:13]}
46. Rg7 {[%clk 0:27:03]}  g5 {[%clk 0:25:24]} 47. Rg6 {[%clk 0:27:30]}  Rc4 {[%clk 0:25:48]} 48. Rd6 {[%clk 0:27:50]}  Kf3 {[%clk 0:23:33]}
49. Kh2 {[%clk 0:27:59]}  Rc2+ {[%clk 0:23:34]} 50. Kg1 {[%clk 0:28:14]}  g4 {[%clk 0:22:40]} 51. Rf6+ {[%clk 0:28:32]}  Ke3 {[%clk 0:22:36]}
52. Rg6 {[%clk 0:28:43]}  Rc4 {[%clk 0:22:57]} 53. Kf1 {[%clk 0:29:09]}  Kd2 {[%clk 0:22:34]} 54. Re6 {[%clk 0:29:26]}  Kc3 {[%clk 0:22:45]}
55. Re3+ {[%clk 0:29:53]}  Kb2 {[%clk 0:23:07]} 56. Ke1 {[%clk 0:30:19]}  Rc3 {[%clk 0:23:16]} 57. Re2+ {[%clk 0:30:44]}  Kxa3 {[%clk 0:23:34]}
58. Kd1 {[%clk 0:31:12]}  Kxb4 {[%clk 0:23:43]} 0-1

[Event "Irish Championship 2026"]
[Site "Talbot Hotel Stillorgan, Co.Dublin, IE"]
[Date "2026.08.07"]
[Round "7"]
[White "Jessel, Stephen"]
[Black "Arun, Nitish"]
[Result "1-0"]
[Board "64"]
[TimeControl "40/5400+30:1800+30"]
[WhiteFideId "628859"]
[BlackFideId "2524201"]
[WhiteElo "2364"]
[BlackElo "2175"]
[WhiteTitle "FM"]
[BlackTitle "CM"]
[WhiteClock "0:20:49"]
[BlackClock "0:28:43"]
[Variant "Standard"]
[EndDate "2026.08.07"]
[EndTime "17:55:49"]

1. Nf3 {[%clk 1:30:51]}  Nf6 {[%clk 1:30:43]} 2. c4 {[%clk 1:31:10]}  e6 {[%clk 1:31:07]} 3. g3 {[%clk 1:31:25]}  d5 {[%clk 1:31:27]}
4. Bg2 {[%clk 1:31:42]}  Be7 {[%clk 1:31:47]} 5. O-O {[%clk 1:31:28]}  O-O {[%clk 1:32:08]} 6. b3 {[%clk 1:31:32]}  d4 {[%clk 1:31:15]}
7. d3 {[%clk 1:30:58]}  Nc6 {[%clk 1:30:29]} 8. e3 {[%clk 1:30:07]}  dxe3 {[%clk 1:29:04]} 9. Bxe3 {[%clk 1:28:51]}  e5 {[%clk 1:27:48]}
10. Nc3 {[%clk 1:23:37]}  Bg4 {[%clk 1:21:15]} 11. h3 {[%clk 1:13:30]}  Bxf3 {[%clk 1:12:18]} 12. Bxf3 {[%clk 1:12:24]}  Qd7 {[%clk 1:11:50]}
13. g4 {[%clk 1:01:04]}  h6 {[%clk 0:50:33]} 14. Nd5 {[%clk 0:48:52]}  Nxd5 {[%clk 0:34:40]} 15. Bxd5 {[%clk 0:48:57]}  Nd8 {[%clk 0:25:33]}
16. Qf3 {[%clk 0:42:51]}  c6 {[%clk 0:23:25]} 17. Be4 {[%clk 0:43:11]}  Bg5 {[%clk 0:17:16]} 18. Rad1 {[%clk 0:41:08]}  Qe7 {[%clk 0:09:57]}
19. d4 {[%clk 0:33:39]}  Bxe3 {[%clk 0:07:41]} 20. Qxe3 {[%clk 0:32:25]}  Qg5 {[%clk 0:07:28]} 21. Qxg5 {[%clk 0:25:58]}  hxg5 {[%clk 0:07:52]}
22. dxe5 {[%clk 0:26:12]}  Ne6 {[%clk 0:07:44]} 23. Kh2 {[%clk 0:15:42]}  Rfe8 {[%clk 0:05:58]} 24. Rfe1 {[%clk 0:10:41]}  Re7 {[%clk 0:05:25]}
25. Kg3 {[%clk 0:09:45]}  Rae8 {[%clk 0:04:34]} 26. Bf5 {[%clk 0:09:05]}  Nf8 {[%clk 0:04:40]} 27. e6 {[%clk 0:02:05]}  fxe6 {[%clk 0:03:42]}
28. Bc2 {[%clk 0:01:38]}  Kf7 {[%clk 0:03:03]} 29. Re5 {[%clk 0:01:09]}  Kf6 {[%clk 0:03:15]} 30. Re3 {[%clk 0:01:31]}  g6 {[%clk 0:01:56]}
31. c5 {[%clk 0:01:22]}  Rd7 {[%clk 0:01:29]} 32. Rf3+ {[%clk 0:01:35]}  Ke7 {[%clk 0:01:42]} 33. Rxd7+ {[%clk 0:01:34]}  Nxd7 {[%clk 0:00:51]}
34. Bxg6 {[%clk 0:01:49]}  Rf8 {[%clk 0:00:52]} 35. Rxf8 {[%clk 0:01:25]}  Nxf8 {[%clk 0:01:03]} 36. Be4 {[%clk 0:00:53]}  Nd7 {[%clk 0:01:22]}
37. b4 {[%clk 0:01:12]}  Nf6 {[%clk 0:00:59]} 38. Bg2 {[%clk 0:00:41]}  e5 {[%clk 0:00:57]} 39. h4 {[%clk 0:00:35]}  Nh7 {[%clk 0:00:46]}
40. Be4 {[%clk 0:00:37]}  Nf6 {[%clk 0:01:10]} 41. f3 {[%clk 0:27:57]}  a5 {[%clk 0:29:30]} 42. bxa5 {[%clk 0:22:42]}  Nd7 {[%clk 0:28:43]}
43. Bxc6 {[%clk 0:20:49]} 1-0

[Event "Irish Championship 2026"]
[Site "Talbot Hotel Stillorgan, Co.Dublin, IE"]
[Date "2026.08.07"]
[Round "7"]
[White "Melaugh, Shane"]
[Black "Brozynski, Patryk"]
[Result "1/2-1/2"]
[Board "65"]
[TimeControl "40/5400+30:1800+30"]
[WhiteFideId "2509580"]
[BlackFideId "2512700"]
[WhiteElo "2157"]
[BlackElo "2224"]
[WhiteTitle "FM"]
[BlackTitle "CM"]
[WhiteClock "1:10:28"]
[BlackClock "0:01:39"]
[Variant "Standard"]
[EndDate "2026.08.07"]
[EndTime "18:11:05"]

1. e4 {[%clk 1:13:21]}  e6 {[%clk 1:30:59]} 2. d4 {[%clk 1:13:41]}  d5 {[%clk 1:31:25]} 3. Nd2 {[%clk 1:12:52]}  h6 {[%clk 1:31:12]}
4. Ngf3 {[%clk 1:10:34]}  Nf6 {[%clk 1:31:37]} 5. e5 {[%clk 1:10:25]}  Nfd7 {[%clk 1:32:03]} 6. Bd3 {[%clk 1:10:51]}  c5 {[%clk 1:32:30]}
7. c3 {[%clk 1:11:18]}  Nc6 {[%clk 1:32:57]} 8. O-O {[%clk 1:11:43]}  g5 {[%clk 1:33:26]} 9. Bb5 {[%clk 1:00:14]}  g4 {[%clk 1:03:31]}
10. Ne1 {[%clk 1:00:38]}  cxd4 {[%clk 1:03:44]} 11. cxd4 {[%clk 1:00:02]}  Nxd4 {[%clk 1:03:18]} 12. Bxd7+ {[%clk 0:59:14]}  Bxd7 {[%clk 1:02:59]}
13. Qxg4 {[%clk 1:00:50]}  Nf5 {[%clk 1:02:11]} 14. Nef3 {[%clk 1:00:44]}  Qb6 {[%clk 0:56:49]} 15. Nh4 {[%clk 0:58:38]}  Bb5 {[%clk 0:33:21]}
16. Nxf5 {[%clk 0:56:25]}  exf5 {[%clk 0:32:43]} 17. Qxf5 {[%clk 0:56:41]}  Bxf1 {[%clk 0:32:39]} 18. Nxf1 {[%clk 0:57:06]}  Qe6 {[%clk 0:22:03]}
19. Qc2 {[%clk 0:55:27]}  Bg7 {[%clk 0:16:42]} 20. Bf4 {[%clk 0:53:27]}  O-O {[%clk 0:15:56]} 21. Ng3 {[%clk 0:53:28]}  Rac8 {[%clk 0:16:07]}
22. Qd2 {[%clk 0:53:38]}  Bxe5 {[%clk 0:14:13]} 23. Bxh6 {[%clk 0:53:58]}  Rfe8 {[%clk 0:14:17]} 24. Be3 {[%clk 0:53:01]}  Bxg3 {[%clk 0:12:19]}
25. hxg3 {[%clk 0:53:25]}  Rc4 {[%clk 0:11:53]} 26. Rd1 {[%clk 0:52:54]}  b6 {[%clk 0:07:12]} 27. Qxd5 {[%clk 0:48:58]}  Qxd5 {[%clk 0:07:39]}
28. Rxd5 {[%clk 0:49:23]}  Rc2 {[%clk 0:05:12]} 29. Rd2 {[%clk 0:48:47]}  Rxd2 {[%clk 0:04:45]} 30. Bxd2 {[%clk 0:47:19]}  Re2 {[%clk 0:05:14]}
31. Bc3 {[%clk 0:47:43]}  f5 {[%clk 0:04:40]} 32. Kf1 {[%clk 0:47:44]}  Rc2 {[%clk 0:04:19]} 33. Ke1 {[%clk 0:48:00]}  Kf7 {[%clk 0:04:26]}
34. Bd4 {[%clk 0:48:24]}  Rc1+ {[%clk 0:02:35]} 35. Ke2 {[%clk 0:48:49]}  Ke6 {[%clk 0:02:44]} 36. Kf3 {[%clk 0:49:08]}  Rg1 {[%clk 0:02:36]}
37. Bc3 {[%clk 0:49:32]}  Kd5 {[%clk 0:02:41]} 38. a3 {[%clk 0:49:54]}  Ke6 {[%clk 0:02:08]} 39. Bd4 {[%clk 0:50:18]}  Kd5 {[%clk 0:02:36]}
40. Bf6 {[%clk 0:50:35]}  a6 {[%clk 0:02:33]} 41. Bd8 {[%clk 0:50:02]}  b5 {[%clk 0:23:21]} 42. Ba5 {[%clk 1:20:26]}  Rc1 {[%clk 0:20:59]}
43. Bc3 {[%clk 1:20:00]}  Rc2 {[%clk 0:20:56]} 44. g4 {[%clk 1:16:33]}  fxg4+ {[%clk 0:20:38]} 45. Kg3 {[%clk 1:16:50]}  Ke4 {[%clk 0:12:46]}
46. f3+ {[%clk 1:17:15]}  gxf3 {[%clk 0:13:10]} 47. gxf3+ {[%clk 1:17:42]}  Ke3 {[%clk 0:08:25]} 48. Be5 {[%clk 1:14:29]}  Rc8 {[%clk 0:08:36]}
49. Bf4+ {[%clk 1:13:36]}  Ke2 {[%clk 0:08:12]} 50. Bg5 {[%clk 1:13:58]}  Rf8 {[%clk 0:07:01]} 51. f4 {[%clk 1:14:17]}  Ke3 {[%clk 0:06:45]}
52. Kg2 {[%clk 1:13:23]}  Rc8 {[%clk 0:06:02]} 53. Kg3 {[%clk 1:13:36]}  Ke4 {[%clk 0:05:27]} 54. Bf6 {[%clk 1:13:56]}  Rc6 {[%clk 0:03:11]}
55. Be5 {[%clk 1:14:19]}  Rc2 {[%clk 0:03:09]} 56. Bf6 {[%clk 1:13:44]}  a5 {[%clk 0:03:05]} 57. Bc3 {[%clk 1:13:31]}  a4 {[%clk 0:02:59]}
58. Be5 {[%clk 1:13:54]}  Rd2 {[%clk 0:03:03]} 59. Bf6 {[%clk 1:10:53]}  Rd3+ {[%clk 0:02:25]} 60. Kg4 {[%clk 1:11:18]}  Rd1 {[%clk 0:02:25]}
61. Kg3 {[%clk 1:11:37]}  Rc1 {[%clk 0:01:00]} 62. Be5 {[%clk 1:11:03]}  Rc2 {[%clk 0:00:49]} 63. Bf6 {[%clk 1:10:33]}  Rd2 {[%clk 0:00:59]}
64. Be5 {[%clk 1:10:53]}  Rd3+ {[%clk 0:00:45]} 65. Kg4 {[%clk 1:10:50]}  Rf3 {[%clk 0:01:01]} 66. Kg5 {[%clk 1:11:11]}  Rf2 {[%clk 0:00:42]}
67. Kf6 {[%clk 1:10:41]}  Rc2 {[%clk 0:01:01]} 68. Ke6 {[%clk 1:11:05]}  Rc6+ {[%clk 0:01:03]} 69. Bd6 {[%clk 1:11:12]}  Rc2 {[%clk 0:00:44]}
70. f5 {[%clk 1:10:00]}  Rxb2 {[%clk 0:00:40]} 71. f6 {[%clk 1:10:25]}  Rf2 {[%clk 0:00:35]} 72. f7 {[%clk 1:10:38]}  Kd3 {[%clk 0:00:34]}
73. f8=Q {[%clk 1:10:18]}  Rxf8 {[%clk 0:00:49]} 74. Bxf8 {[%clk 1:10:44]}  b4 {[%clk 0:00:54]} 75. axb4 {[%clk 1:10:03]}  Kc4 {[%clk 0:01:17]}
76. Kd7 {[%clk 1:10:28]}  Kb5 {[%clk 0:01:39]} 1/2-1/2